fUSD/lending_fUSD_20250413
["ID","MTS","AMOUNT","RATE_DAILY","PERIOD"]
[357922321,1744564248543,-150.0,0.00019937,2]
[357922322,1744564248554,-150.0,0.00019939,2]
[357922323,1744564248565,-150.0,0.0001994,2]
[357922324,1744564248576,-150.0,0.00019952,2]
[357922325,1744564248588,-150.0,0.00019954,2]
[357922326,1744564248599,-150.0,0.00019954,2]
[357922327,1744564248610,-150.0,0.00019957,2]
[357922328,1744564248621,-150.0,0.00019965,2]
[357922329,1744564248632,-150.0,0.00019969,2]
[357922330,1744564248643,-150.0,0.00019976,2]
[357922331,1744564248655,-150.0,0.00019977,2]
[357922332,1744564248668,-150.0,0.00019982,2]
[357922333,1744564248680,-150.0,0.00019984,2]
[357922334,1744564248691,-150.0,0.00019986,2]
[357922335,1744564248703,-201740.18734484,0.0002,2]
[357922336,1744564541139,783.3,0.00016953,2]
[357922337,1744565070169,5559.0,0.000189,3]
[357922338,1744565102754,5559.0,0.000189,3]
[357922339,1744565135478,5559.0,0.00019,5]
[357922340,1744565135740,5559.0,0.000187,3]
[357922341,1744565168242,5559.0,0.000188,5]
[357922342,1744565168481,5559.0,0.000185,3]
[357922346,1744565200841,5559.0,0.000188,5]
[357922347,1744565201070,5559.0,0.000185,3]
[357922348,1744565233681,5559.0,0.000186,5]
[357922349,1744565233860,3154.73,0.000182,3]
[357922350,1744565233886,2404.27,0.000182,3]
[357922352,1744565266177,5559.0,0.000182,3]
[357922353,1744565299465,5559.0,0.000184,5]
[357922354,1744565299703,3758.0,0.00018,3]
[357922371,1744565432206,-217.99380183,0.000187,2]
[357922373,1744565432216,-166.19,0.00018818,2]
[357922374,1744565432225,-31.69089753,0.00018819,2]
[357922375,1744565432236,-218.30910247,0.00018819,2]
[357922376,1744565432247,-250.0,0.0001884,2]
[357922377,1744565432257,-300.0,0.00018843,2]
[357922378,1744565432266,-300.0,0.00018843,2]
[357922379,1744565432275,-13277.70946244,0.00018844,2]
[357922380,1744565432287,-5234.1291851,0.00018844,2]
[357922381,1744565432308,-421.02569296,0.00018844,2]
[357922382,1744565432331,-510.8963481,0.00018844,2]
[357922383,1744565432373,-4456.2393114,0.00018844,2]
[357922384,1744565432383,-1000.0,0.00018878,2]
[357922385,1744565432392,-506.63,0.00018883,2]
[357922386,1744565432401,-1581.05453218,0.00018953,2]
[357922472,1744565438398,-6988.15546782,0.00018953,2]
[357922473,1744565438408,-374.0,0.00019,2]
[357922474,1744565438417,-250.0,0.00019,2]
[357922475,1744565438426,-500.0,0.00019178,2]
[357922476,1744565438434,-500.0,0.00019178,2]
[357922477,1744565438442,-500.0,0.00019178,2]
[357922478,1744565438451,-500.0,0.00019178,2]
[357922479,1744565438461,-1489.54,0.00019178,2]
[357922480,1744565438472,-727.69,0.00019178,2]
[357922481,1744565438482,-783.3,0.00019217,2]
[357922482,1744565438492,-500.0,0.00019452,2]
[357922483,1744565438504,-500.0,0.00019452,2]
[357922484,1744565438518,-500.0,0.00019452,2]
[357922485,1744565438528,-500.0,0.00019452,2]
[357922486,1744565438537,-1489.54,0.00019452,2]
[357922487,1744565438547,-727.69,0.00019452,2]
[357922488,1744565438558,-230.37559946,0.00019666,2]
[357922489,1744565438567,-150.0,0.00019679,2]
[357922490,1744565438576,-150.0,0.0001969,2]
[357922491,1744565438587,-250.0,0.0001969,2]
[357922492,1744565438598,-150.0,0.00019695,2]
[357922493,1744565438608,-644.82,0.000197,2]
[357922494,1744565438618,-150.0,0.00019718,2]
[357922495,1744565438628,-150.0,0.00019725,2]
[357922497,1744565438637,-500.0,0.00019726,2]
[357922499,1744565438647,-500.0,0.00019726,2]
[357922501,1744565438656,-500.0,0.00019726,2]
[357922503,1744565438666,-193.23,0.00019726,2]
[357922504,1744565438676,-1489.54,0.00019726,2]
[357922505,1744565438686,-727.69,0.00019726,2]
[357922507,1744565438696,-150.0,0.00019743,2]
[357922509,1744565438706,-150.0,0.00019747,2]
[357922511,1744565438716,-150.0,0.00019756,2]
[357922513,1744565438725,-150.0,0.00019758,2]
[357922515,1744565438735,-150.0,0.00019766,2]
[357922517,1744565438744,-150.0,0.00019789,2]
[357922519,1744565438755,-150.0,0.00019794,2]
[357922521,1744565438763,-150.0,0.00019795,2]
[357922522,1744565438773,-150.0,0.00019795,2]
[357922525,1744565438783,-150.0,0.00019811,2]
[357922526,1744565438792,-150.0,0.00019821,2]
[357922528,1744565438801,-150.0,0.00019821,2]
[357922530,1744565438811,-150.0,0.00019841,2]
[357922532,1744565438821,-150.0,0.0001985,2]
[357922535,1744565438831,-150.0,0.00019855,2]
[357922538,1744565438840,-150.0,0.00019855,2]
[357922540,1744565438851,-150.0,0.00019868,2]
[357922542,1744565438861,-150.0,0.0001987,2]
[357922544,1744565438870,-150.0,0.00019871,2]
[357922546,1744565438879,-150.0,0.00019871,2]
[357922548,1744565438888,-150.0,0.00019882,2]
[357922550,1744565438898,-150.0,0.00019887,2]
[357922552,1744565438907,-150.0,0.00019897,2]
[357922554,1744565438916,-150.0,0.00019897,2]
[357922556,1744565438925,-150.0,0.00019898,2]
[357922558,1744565438934,-150.0,0.000199,2]
[357922560,1744565438943,-3394.67352081,0.000199,2]
[357922562,1744565438952,-832.77991873,0.000199,2]
[357922563,1744565438963,-832.77991872,0.000199,2]
[357922565,1744565438981,-150.0,0.00019906,2]
[357922567,1744565438990,-150.0,0.00019907,2]
[357922569,1744565439002,-150.0,0.00019916,2]
[357922571,1744565439011,-1036.276,0.00019922,2]
[357922573,1744565439022,-150.0,0.00019929,2]
[357922575,1744565439041,-150.0,0.0001993,2]
[357922577,1744565439058,-150.0,0.00019931,2]
[357922578,1744565439068,-150.0,0.00019934,2]
[357922579,1744565439079,-150.0,0.00019938,2]
[357922580,1744565439089,-500.0,0.00019973,2]
[357922581,1744565439099,-5792.2877735,0.00019986,2]
[357922582,1744565439111,-269.6832042,0.00019986,2]
[357922583,1744565439121,-260.69960476,0.00019986,2]
[357922584,1744565439130,-715.73096962,0.00019986,2]
[357922585,1744565439140,-856.1851684,0.00019986,2]
[357922586,1744565439150,-184.83285398,0.0002,2]
[357922587,1744565439162,-373.99730778,0.0002,2]
[357922588,1744565439174,-3823.73531501,0.0002,2]
[357922589,1744565439186,-698.94101129,0.0002,2]
[357922590,1744565439201,-1499.8,0.0002,2]
[357922593,1744565440388,-806.0,0.0002,2]
[357922594,1744565440446,-318.7949,0.0002,2]
[357922595,1744565440503,-17597.78939434,0.0002,2]
[357922596,1744565440515,-18228.21060566,0.0002,2]
[357922597,1744565440725,-7617.9336193,0.0002,2]
[357922598,1744565440737,-1061.22782865,0.0002,2]
[357922599,1744565440749,-961.72266157,0.0002,2]
[357922600,1744565440761,-1651.96091415,0.0002,2]
[357922601,1744565440773,-1269.95729674,0.0002,2]
[357922602,1744565440784,-5394.8115898,0.0002,2]
[357922623,1744565446296,-8583.90326179,0.0002,2]
[357922624,1744565446308,-3634.47132448,0.0002,2]
[357922625,1744565446320,-4462.26972224,0.0002,2]
[357922626,1744565446526,-734.22511413,0.0002,2]
[357922642,1744566051586,5559.0,0.000159,5]
[357922643,1744566051819,5559.0,0.000156,3]
[357922644,1744566052041,10000.0,0.000153,2]
[357922645,1744566052068,267.0,0.000153,2]
[357922659,1744566631379,-744.84,0.00018049,2]
[357922660,1744566631389,-189.49,0.00018263,2]
[357922661,1744566631436,-60.51,0.00018263,2]
[357922662,1744566631446,-553.07,0.00018754,2]
[357922663,1744566631456,-170.43,0.00018905,2]
[357922664,1744566631467,-351.841098,0.00018905,2]
[357922665,1744566631479,-2790.43819,0.00018905,2]
[357922666,1744566631488,-166.18,0.00018938,2]
[357922667,1744566631498,-992.81,0.00019,2]
[357922668,1744566631507,-992.81,0.00019,2]
[357922669,1744566631517,-992.81,0.00019,2]
[357922670,1744566631531,-992.81,0.00019,2]
[357922671,1744566631540,-992.81,0.00019,2]
[357922672,1744566631550,-250.0,0.00019,2]
[357922673,1744566631560,-200.0,0.00019038,2]
[357922674,1744566631570,-415.0,0.00019096,2]
[357922675,1744566631580,-150.0,0.00019151,2]
[357922676,1744566631589,-500.0,0.00019178,2]
[357922677,1744566631599,-500.0,0.00019178,2]
[357922678,1744566631609,-500.0,0.00019178,2]
[357922679,1744566631618,-500.0,0.00019178,2]
[357922680,1744566631627,-1438.77,0.00019178,2]
[357922681,1744566631637,-636.73,0.00019178,2]
[357922682,1744566631647,-7504.75833591,0.00019178,2]
[357922683,1744566631662,-1880.00001,0.00019178,2]
[357922684,1744566631673,-319.0,0.00019178,2]
[357922685,1744566631685,-1866.06699477,0.00019178,2]
[357922686,1744566631704,-2864.99328701,0.00019178,2]
[357922687,1744566631716,-2746.32998428,0.00019178,2]
[357922688,1744566631728,-1383.25036503,0.00019178,2]
[357922689,1744566631737,-250.0,0.00019191,2]
[357922690,1744566631747,-200.0,0.0001923,2]
[357922691,1744566631757,-1000.0,0.00019354,2]
[357922692,1744566631767,-499.43675977,0.00019452,2]
[357922693,1744566631782,-0.56324023,0.00019452,2]
[357922694,1744566631793,-500.0,0.00019452,2]
[357922695,1744566631803,-500.0,0.00019452,2]
[357922696,1744566631813,-500.0,0.00019452,2]
[357922697,1744566631822,-1438.77,0.00019452,2]
[357922698,1744566631831,-636.73,0.00019452,2]
[357922699,1744566631841,-469.27944747,0.00019726,2]
[357922700,1744566631850,-500.0,0.00019726,2]
[357922701,1744566631860,-500.0,0.00019726,2]
[357922702,1744566631870,-500.0,0.00019726,2]
[357922703,1744566631879,-1438.77,0.00019726,2]
[357922704,1744566631889,-435.8625723,0.00019726,2]
[357922705,1744566631903,-200.8674277,0.00019726,2]
[357922706,1744566631913,-500.0,0.00019753,2]
[357922707,1744566631923,-200.0,0.0001984,2]
[357922708,1744566631932,-250.0,0.00019853,2]
[357922709,1744566631942,-93.2879223,0.00019853,2]
[357922886,1744566639515,-500.0,0.00019178,2]
[357922888,1744566639524,-500.0,0.00019452,2]
[357922890,1744566639535,-467.46361847,0.00019726,2]
[357922892,1744566639544,-156.7120777,0.00019853,2]
[357922894,1744566639553,-1019.12720812,0.000199,2]
[357922896,1744566639565,-274.53319188,0.000199,2]
[357922898,1744566639574,-133.44768812,0.000199,2]
[357922904,1744566639624,-1003.88271188,0.000199,2]
[357922906,1744566639633,-1173.71728812,0.000199,2]
[357922909,1744566639644,-10377.59079056,0.000199,2]
[357922913,1744566639681,-2945.35352132,0.000199,2]
[357922916,1744566639691,-1538.1654,0.000199,2]
[357922917,1744566639700,-437.28299883,0.000199,2]
[357922920,1744566639710,-24669.5355,0.000199,2]
[357922921,1744566639719,-500.0,0.00019973,2]
[357922923,1744566639728,-187.3780958,0.00019986,2]
[357922925,1744566639737,-976.4564089,0.00019986,2]
[357922927,1744566639747,-18243.6427252,0.00019986,2]
[357922929,1744566639756,-2421.9506799,0.00019986,2]
[357922932,1744566639766,-151.0,0.00019988,2]
[357922934,1744566639776,-207.4,0.00019988,2]
[357922935,1744566639786,-170.82847519,0.00019998,2]
[357922937,1744566639795,-829.021,0.00019998,2]
[357922939,1744566639804,-2809.00889888,0.00019998,3]
[357922941,1744566639813,-12979.69939694,0.0002,2]
[357922943,1744566639822,-225852.44999282,0.0002,2]
[357922945,1744566639831,-1726246.35823682,0.0002,2]
[357922947,1744566639840,-1500.0,0.0002,2]
[357922948,1744566639850,-1500.0,0.0002,2]
[357922949,1744566639859,-1500.0,0.0002,2]
[357922950,1744566639869,-1500.0,0.0002,2]
[357922951,1744566639879,-1500.0,0.0002,2]
[357922952,1744566639888,-1500.0,0.0002,2]
[357922953,1744566639898,-1500.0,0.0002,2]
[357922954,1744566639908,-1500.0,0.0002,2]
[357922955,1744566639917,-1623.19,0.0002,2]
[357922956,1744566639926,-500.0,0.0002,2]
[357922957,1744566639938,-713441.84823499,0.0002,2]
[357922958,1744566639950,-5715.12740809,0.0002,2]
[357922959,1744566639961,-723.90819947,0.0002,2]
[357922960,1744566639973,-774.42425797,0.0002,2]
[357922961,1744566639992,-5561.91236038,0.0002,2]
[357922962,1744566640003,-1234.69500997,0.0002,2]
[357922964,1744566640019,-7564.3617255,0.0002,2]
[357922966,1744566640033,-1135.96567531,0.0002,2]
[357922968,1744566640045,-1264.33303513,0.0002,2]
[357923168,1744566645554,-389.85227897,0.0002,2]
[357923169,1744566645566,-12714.6,0.0002,2]
[357923170,1744566645577,-383.77625,0.0002,2]
[357923171,1744566645732,-401.33630978,0.0002,2]
[357923189,1744567803490,350.0,0.00018374,12]
[357923192,1744567831699,-463.14705203,0.00018323,2]
[357923212,1744567837768,-357.48294797,0.00018323,2]
[357923213,1744567837778,-54.49704997,0.00018424,2]
[357923214,1744567837933,-1189.0977,0.00018424,2]
[357923321,1744567839848,-756.40525003,0.00018424,2]
[357923322,1744567839859,-276.53,0.00018643,2]
[357923323,1744567839869,-238.28198606,0.00018667,2]
[357923324,1744567839881,-11.71801394,0.00018667,2]
[357923325,1744567839891,-250.0,0.0001875,2]
[357923326,1744567839901,-204.3,0.00018842,2]
[357923327,1744567839910,-300.0,0.00018854,2]
[357923328,1744567839919,-356.52045596,0.00018855,2]
[357923329,1744567839958,-799.74999995,0.00018855,2]
[357923330,1744567840019,-14964.66954409,0.00018855,2]
[357923331,1744567840029,-1000.0,0.00018874,2]
[357923332,1744567840038,-500.0,0.00018992,2]
[357923333,1744567840048,-500.0,0.00018992,2]
[357923334,1744567840057,-500.0,0.00018992,2]
[357923335,1744567840067,-500.0,0.00018992,2]
[357923336,1744567840078,-500.0,0.00018992,2]
[357923337,1744567840087,-500.0,0.00018992,2]
[357923338,1744567840097,-500.0,0.00018992,2]
[357923339,1744567840106,-500.0,0.00018992,2]
[357923340,1744567840116,-500.0,0.00018992,2]
[357923341,1744567840125,-500.0,0.00018992,2]
[357923342,1744567840135,-500.0,0.00018992,2]
[357923343,1744567840145,-500.0,0.00018992,2]
[357923344,1744567840154,-500.0,0.00018992,2]
[357923345,1744567840163,-600.0,0.00018992,2]
[357923346,1744567840173,-500.0,0.00018992,2]
[357923347,1744567840183,-500.0,0.00018992,2]
[357923348,1744567840192,-500.0,0.00018992,2]
[357923349,1744567840202,-500.0,0.00018992,2]
[357923350,1744567840212,-500.0,0.00018992,2]
[357923351,1744567840221,-500.0,0.00018992,2]
[357923352,1744567840231,-500.0,0.00018992,2]
[357923353,1744567840240,-500.0,0.00018992,2]
[357923354,1744567840250,-500.0,0.00018992,2]
[357923355,1744567840260,-500.0,0.00018992,2]
[357923356,1744567840269,-500.0,0.00018992,2]
[357923357,1744567840279,-500.0,0.00018992,2]
[357923359,1744567840288,-500.0,0.00018992,2]
[357923361,1744567840300,-500.0,0.00018992,2]
[357923362,1744567840310,-500.0,0.00018992,2]
[357923364,1744567840319,-500.0,0.00018992,2]
[357923366,1744567840332,-500.0,0.00018992,2]
[357923367,1744567840342,-500.0,0.00018992,2]
[357923369,1744567840352,-500.0,0.00018992,2]
[357923370,1744567840361,-500.0,0.00018992,2]
[357923371,1744567840371,-6378.73,0.00019,2]
[357923372,1744567840381,-6378.73,0.00019,2]
[357923373,1744567840390,-6378.73,0.00019,2]
[357923374,1744567840402,-6378.73,0.00019,2]
[357923375,1744567840412,-6378.73,0.00019,2]
[357923376,1744567840421,-500.0,0.00019138,2]
[357923377,1744567840430,-217.0,0.00019177,2]
[357923378,1744567840439,-500.0,0.00019178,2]
[357923379,1744567840449,-500.0,0.00019178,2]
[357923380,1744567840458,-500.0,0.00019178,2]
[357923381,1744567840467,-500.0,0.00019178,2]
[357923382,1744567840476,-500.0,0.00019178,2]
[357923383,1744567840486,-500.0,0.00019178,2]
[357923384,1744567840495,-500.0,0.00019178,2]
[357923385,1744567840504,-500.0,0.00019178,2]
[357923386,1744567840514,-500.0,0.00019178,2]
[357923387,1744567840523,-500.0,0.00019178,2]
[357923388,1744567840533,-500.0,0.00019178,2]
[357923389,1744567840542,-500.0,0.00019178,2]
[357923390,1744567840551,-310.98765879,0.00019178,2]
[357923391,1744567840560,-500.0,0.00019178,2]
[357923392,1744567840570,-500.0,0.00019178,2]
[357923393,1744567840581,-500.0,0.00019178,2]
[357923394,1744567840591,-390.16037822,0.00019178,2]
[357923395,1744567840600,-500.0,0.00019178,2]
[357923396,1744567840609,-500.0,0.00019178,2]
[357923397,1744567840619,-500.0,0.00019178,2]
[357923398,1744567840628,-500.0,0.00019178,2]
[357923399,1744567840637,-500.0,0.00019178,2]
[357923400,1744567840646,-500.0,0.00019178,2]
[357923401,1744567840656,-833.39,0.00019178,2]
[357923402,1744567840665,-500.0,0.00019178,2]
[357923403,1744567840675,-500.0,0.00019178,2]
[357923404,1744567840684,-500.0,0.00019178,2]
[357923405,1744567840693,-500.0,0.00019178,2]
[357923406,1744567840703,-500.0,0.00019178,2]
[357923407,1744567840712,-500.0,0.00019178,2]
[357923408,1744567840722,-253.35842338,0.00019178,2]
[357923409,1744567840732,-500.0,0.00019178,2]
[357923410,1744567840742,-500.0,0.00019178,2]
[357923411,1744567840751,-500.0,0.00019178,2]
[357923412,1744567840761,-500.0,0.00019178,2]
[357923413,1744567840771,-500.0,0.00019178,2]
[357923414,1744567840780,-500.0,0.00019178,2]
[357923415,1744567840790,-500.0,0.00019178,2]
[357923416,1744567840800,-500.0,0.00019178,2]
[357923417,1744567840809,-500.0,0.00019178,2]
[357923418,1744567840819,-500.0,0.00019178,2]
[357923419,1744567840829,-500.0,0.00019178,2]
[357923420,1744567840839,-500.0,0.00019178,2]
[357923421,1744567840849,-697.65,0.00019178,2]
[357923422,1744567840858,-500.0,0.00019178,2]
[357923423,1744567840867,-500.0,0.00019178,2]
[357923424,1744567840877,-500.0,0.00019178,2]
[357923425,1744567840886,-500.0,0.00019178,2]
[357923426,1744567840896,-500.0,0.00019178,2]
[357923427,1744567840906,-500.0,0.00019178,2]
[357923428,1744567840915,-500.0,0.00019178,2]
[357923429,1744567840925,-500.0,0.00019178,2]
[357923430,1744567840934,-162.96,0.00019214,2]
[357923431,1744567840944,-500.0,0.00019233,2]
[357923432,1744567840955,-500.0,0.00019288,2]
[357923433,1744567840964,-500.0,0.00019342,2]
[357923434,1744567840975,-500.0,0.00019397,2]
[357923435,1744567840986,-260.38042865,0.00019451,2]
[357923436,1744567840996,-229.23542765,0.00019451,2]
[357923437,1744567841007,-500.0,0.00019452,2]
[357923438,1744567841018,-500.0,0.00019452,2]
[357923439,1744567841036,-500.0,0.00019452,2]
[357923440,1744567841053,-420.34,0.00019452,2]
[357923441,1744567841070,-500.0,0.00019452,2]
[357923442,1744567841082,-500.0,0.00019452,2]
[357923443,1744567841091,-500.0,0.00019452,2]
[357923444,1744567841101,-500.0,0.00019452,2]
[357923445,1744567841111,-833.39,0.00019452,2]
[357923446,1744567841121,-500.0,0.00019452,2]
[357923447,1744567841131,-500.0,0.00019452,2]
[357923448,1744567841141,-500.0,0.00019452,2]
[357923449,1744567841380,-500.0,0.00019452,2]
[357923450,1744567841392,-488.87,0.00019452,2]
[357923451,1744567841402,-500.0,0.00019452,2]
[357923452,1744567841412,-697.65,0.00019452,2]
[357923453,1744567841422,-500.0,0.00019452,2]
[357923454,1744567841432,-500.0,0.00019452,2]
[357923455,1744567841442,-500.0,0.00019452,2]
[357923456,1744567841452,-500.0,0.00019452,2]
[357923457,1744567841461,-415.34693254,0.00019507,2]
[357923458,1744567841473,-1000.0,0.0001961,2]
[357923459,1744567841484,-173.761438,0.00019698,2]
[357923460,1744567841503,-207.4,0.00019698,2]
[357923461,1744567841518,-197.4,0.000197,2]
[357923462,1744567841528,-73575.4083,0.0001971,2]
[357923463,1744567841538,-500.0,0.00019726,2]
[357923464,1744567841548,-500.0,0.00019726,2]
[357923465,1744567841559,-150.0,0.00019726,2]
[357923466,1744567841568,-150.0,0.00019726,2]
[357923467,1744567841578,-500.0,0.00019726,2]
[357923468,1744567841588,-500.0,0.00019726,2]
[357923469,1744567841597,-500.0,0.00019726,2]
[357923470,1744567841607,-833.39,0.00019726,2]
[357923471,1744567841617,-500.0,0.00019726,2]
[357923472,1744567841627,-500.0,0.00019726,2]
[357923473,1744567841637,-500.0,0.00019726,2]
[357923474,1744567841647,-415.82,0.00019726,2]
[357923475,1744567841657,-500.0,0.00019726,2]
[357923476,1744567841666,-697.65,0.00019726,2]
[357923477,1744567841675,-500.0,0.00019726,2]
[357923478,1744567841686,-500.0,0.00019726,2]
[357923479,1744567841695,-500.0,0.00019726,2]
[357923480,1744567841705,-150.0,0.00019727,2]
[357923481,1744567841715,-150.0,0.00019728,2]
[357923482,1744567841725,-1046.35115702,0.00019728,2]
[357923483,1744567841735,-150.0,0.00019737,2]
[357923484,1744567841744,-150.0,0.00019737,2]
[357923485,1744567841753,-150.0,0.00019738,2]
[357923486,1744567841762,-150.0,0.00019739,2]
[357923487,1744567841771,-150.0,0.00019753,2]
[357923488,1744567841780,-150.0,0.00019754,2]
[357923489,1744567841789,-150.0,0.0001976,2]
[357923490,1744567841799,-150.0,0.00019768,2]
[357923491,1744567841808,-150.0,0.00019769,2]
[357923492,1744567841817,-150.0,0.00019774,2]
[357923493,1744567841828,-150.0,0.00019784,2]
[357923494,1744567841837,-150.0,0.00019785,2]
[357923495,1744567841847,-2208.20442314,0.00019785,2]
[357923496,1744567841856,-150.0,0.00019789,2]
[357923497,1744567841866,-150.0,0.00019792,2]
[357923498,1744567841875,-150.0,0.00019793,2]
[357923499,1744567841884,-150.0,0.00019795,2]
[357923500,1744567841893,-150.0,0.00019795,2]
[357923501,1744567841903,-173.09446297,0.00019797,2]
[357923502,1744567841912,-150.0,0.00019797,2]
[357923503,1744567841922,-2208.20442308,0.00019798,2]
[357923504,1744567841931,-150.0,0.00019798,2]
[357923505,1744567841941,-4799.46737687,0.000198,2]
[357923506,1744567841950,-150.0,0.00019801,2]
[357923507,1744567841959,-150.0,0.00019802,2]
[357923508,1744567841969,-150.0,0.00019802,2]
[357923509,1744567841978,-150.0,0.00019804,2]
[357923510,1744567841987,-150.0,0.00019806,2]
[357923511,1744567841997,-150.0,0.00019807,2]
[357923512,1744567842006,-89235.87604793,0.0001981,2]
[357923513,1744567842015,-2208.20442308,0.00019811,2]
[357923514,1744567842025,-150.0,0.00019811,2]
[357923515,1744567842034,-150.0,0.00019813,2]
[357923516,1744567842044,-150.0,0.00019814,2]
[357923517,1744567842053,-150.0,0.00019817,2]
[357923518,1744567842062,-1000.0,0.00019817,2]
[357923519,1744567842072,-150.0,0.00019822,2]
[357923520,1744567842083,-2208.20442308,0.00019823,2]
[357923521,1744567842092,-150.0,0.00019826,2]
[357923522,1744567842101,-1000.0,0.00019826,2]
[357923523,1744567842111,-150.0,0.0001983,2]
[357923524,1744567842119,-150.0,0.00019832,2]
[357923525,1744567842129,-150.0,0.00019833,2]
[357923526,1744567842138,-1000.0,0.00019834,2]
[357923527,1744567842147,-150.0,0.00019835,2]
[357923528,1744567842156,-2208.20442308,0.00019836,2]
[357923529,1744567842166,-150.0,0.00019837,2]
[357923530,1744567842175,-150.0,0.00019838,2]
[357923531,1744567842184,-150.0,0.00019841,2]
[357923532,1744567842194,-150.0,0.00019842,2]
[357923533,1744567842203,-150.0,0.00019847,2]
[357923534,1744567842213,-2208.20442308,0.00019849,2]
[357923535,1744567842222,-150.0,0.00019849,2]
[357923536,1744567842231,-150.0,0.00019856,2]
[357923537,1744567842240,-150.0,0.0001986,2]
[357923538,1744567842250,-2208.20442308,0.00019862,2]
[357923539,1744567842259,-150.0,0.00019862,2]
[357923540,1744567842268,-150.0,0.00019865,2]
[357923541,1744567842277,-150.0,0.00019865,2]
[357923542,1744567842286,-150.0,0.00019869,2]
[357923543,1744567842297,-150.0,0.0001987,2]
[357923544,1744567842309,-150.0,0.00019871,2]
[357923545,1744567842319,-150.0,0.00019873,2]
[357923546,1744567842329,-150.0,0.00019873,2]
[357923547,1744567842339,-150.0,0.00019873,2]
[357923548,1744567842348,-150.0,0.00019874,2]
[357923549,1744567842357,-2208.20442308,0.00019874,2]
[357923550,1744567842367,-150.0,0.00019878,2]
[357923551,1744567842376,-150.0,0.0001988,2]
[357923552,1744567842386,-150.0,0.00019884,2]
[357923553,1744567842396,-150.0,0.00019884,2]
[357923554,1744567842405,-7775.30908887,0.00019884,2]
[357923559,1744567842750,-500.0,0.00019178,2]
[357923560,1744567842761,-250.0,0.00019452,2]
[357923561,1744567842916,-250.0,0.00019452,2]
[357923562,1744567842926,-15154.1550145,0.00019884,2]
[357923567,1744567844912,-23656.21009642,0.00019884,2]
[357923568,1744567844922,-150.0,0.00019885,2]
[357923569,1744567844932,-2208.20442308,0.00019887,2]
[357923570,1744567844942,-150.0,0.00019888,2]
[357923571,1744567844952,-150.0,0.00019889,2]
[357923572,1744567844961,-150.0,0.00019893,2]
[357923573,1744567844971,-150.0,0.00019894,2]
[357923574,1744567844980,-150.0,0.00019899,2]
[357923575,1744567844990,-226.70183528,0.000199,2]
[357923576,1744567844999,-2208.20442308,0.000199,2]
[357923577,1744567845008,-150.0,0.00019903,2]
[357923578,1744567845018,-150.0,0.00019906,2]
[357923579,1744567845027,-150.0,0.00019907,2]
[357923580,1744567845036,-150.0,0.0001991,2]
[357923581,1744567845046,-150.0,0.00019912,2]
[357923582,1744567845056,-150.0,0.00019913,2]
[357923583,1744567845066,-150.0,0.00019913,2]
[357923584,1744567845075,-834.494,0.00019919,2]
[357923585,1744567845085,-150.0,0.00019919,2]